[Event "Kupreichik Memorial Rapid 2019"]
[Site "Minsk"]
[Date "2019.08.16"]
[Round "4.32"]
[White "Karmishyn, Vadzim"]
[Black "Dvurechensky, Viacheslav"]
[Result "0-1"]
[ECO "A11"]
[WhiteElo "1494"]
[BlackElo "1840"]
[Annotator "NA"]
[PlyCount "38"]
[EventDate "2019.08.15"]
[EventType "swiss"]
[EventCountry "BLR"]
[SourceTitle "playchess.com"]
[Source "ChessBase"]
[SourceQuality "1"]
[TimeControl "900+10"]

1. c4 {[%emt 0:00:00]} c6 {[%emt 0:00:00]} 2. e3 {[%emt 0:00:13]} d5 {[%emt 0:00:00]} 3. Nc3 {[%emt 0:00:05]} Nf6 {[%emt 0:00:01]} 4. Nf3 {[%emt 0:00:02]} Bg4 {[%emt 0:01:00]} 5. b3 {[%emt 0:00:46]} e5 {[%emt 0:00:44]} 6. h3 {[%emt 0:00:30]} Bxf3 {[%emt 0:00:20]} 7. Qxf3 {[%emt 0:00:04]} e4 {[%emt 0:00:42]} 8. Qf5 {[%emt 0:00:17]} Bd6 {[%emt 0:02:08]} 9. cxd5 {[%emt 0:01:09]} g6 {[%emt 0:00:39]} 10. Qg5 {[%emt 0:03:51]} h6 {[%emt 0:00:11]} 11. Qh4 {[%emt 0:00:32]} g5 {[%emt 0:00:10]} 12. Qxe4+ {[%emt 0:00:11]} Nxe4 {[%emt 0:00:07]} 13. Nxe4 {[%emt 0:00:01]} Be5 {[%emt 0:01:01]} 14. dxc6 {[%emt 0:00:45]} Nxc6 {[%emt 0:01:02]} 15. Rb1 {[%emt 0:01:07]} Qa5 {[%emt 0:01:48]} 16. a3 {[%emt 0:00:45]} f5 {[%emt 0:00:48]} 17. b4 {[%emt 0:00:25]} Qd5 {[%emt 0:00:27]} 18. Nc3 {[%emt 0:00:38]} Bxc3 {[%emt 0:00:19]} 19. dxc3 {[%emt 0:00:02]} O-O-O {[%emt 0:00:54]} 0-1

[Event "Kupreichik Memorial Rapid 2019"]
[Site "Minsk"]
[Date "2019.08.16"]
[Round "4.33"]
[White "Sadovnikov, Konstantin"]
[Black "Pogorelov, Aleksey"]
[Result "1-0"]
[ECO "C25"]
[WhiteElo "1798"]
[BlackElo "1548"]
[Annotator "NA"]
[PlyCount "47"]
[EventDate "2019.08.15"]
[EventType "swiss"]
[EventCountry "BLR"]
[SourceTitle "playchess.com"]
[Source "ChessBase"]
[SourceQuality "1"]
[TimeControl "900+10"]

1. e4 {[%emt 0:00:00]} e5 {[%emt 0:00:00]} 2. Nc3 {[%emt 0:00:00]} Nc6 {[%emt 0:00:00]} 3. Bc4 {[%emt 0:00:00]} Bc5 {[%emt 0:00:02]} 4. Qg4 {[%emt 0:00:00]} Qf6 {[%emt 0:00:15]} 5. Nd5 {[%emt 0:00:00]} Bxf2+ {[%emt 0:02:00]} 6. Kd1 {[%emt 0:02:07]} Qg6 {[%emt 0:01:38]} 7. Nxc7+ {[%emt 0:01:12]} Kd8 {[%emt 0:00:13]} 8. Qxg6 {[%emt 0:00:02]} hxg6 {[%emt 0:00:10]} 9. Nxa8 {[%emt 0:00:01]} f5 {[%emt 0:00:45]} 10. d3 {[%emt 0:02:17]} Nf6 {[%emt 0:00:22]} 11. Nh3 {[%emt 0:01:07]} Bc5 {[%emt 0:01:36]} 12. Ng5 {[%emt 0:02:33]} Rf8 {[%emt 0:01:13]} 13. c3 {[%emt 0:00:35]} Bd6 {[%emt 0:01:45]} 14. Nf7+ {[%emt 0:00:48]} Ke7 {[%emt 0:00:02]} 15. Nxd6 {[%emt 0:00:16]} Kxd6 {[%emt 0:00:01]} 16. b3 {[%emt 0:01:12]} Ke7 {[%emt 0:01:11]} 17. Nc7 a6 {[%emt 0:00:22]} 18. Nd5+ {[%emt 0:00:45]} Kd8 {[%emt 0:01:56]} 19. Nxf6 {[%emt 0:02:38]} gxf6 {[%emt 0:00:01]} 20. Bh6 {[%emt 0:00:31]} Re8 {[%emt 0:00:39]} 21. Bf7 {[%emt 0:00:01]} Re7 {[%emt 0:00:24]} 22. Bxg6 {[%emt 0:00:06]} fxe4 {[%emt 0:00:03]} 23. dxe4 {[%emt 0:00:10]} d6 {[%emt 0:00:02]} 24. Kc2 {[%emt 0:00:06]} 1-0

[Event "Kupreichik Memorial Rapid 2019"]
[Site "Minsk"]
[Date "2019.08.16"]
[Round "4.36"]
[White "Ustiugov, Boris"]
[Black "Zvereva, Margarita"]
[Result "0-1"]
[ECO "D00"]
[WhiteElo "1567"]
[BlackElo "1678"]
[Annotator "NA"]
[PlyCount "105"]
[EventDate "2019.08.15"]
[EventType "swiss"]
[EventCountry "BLR"]
[SourceTitle "playchess.com"]
[Source "ChessBase"]
[SourceQuality "1"]
[TimeControl "900+10"]

1. d4 {[%emt 0:00:00]} d5 {[%emt 0:00:00]} 2. Nc3 {[%emt 0:00:02]} Nf6 {[%emt 0:00:00]} 3. g3 {[%emt 0:00:02]} e6 {[%emt 0:00:07]} 4. Bg2 {[%emt 0:00:03]} Be7 {[%emt 0:00:32]} 5. Nf3 {[%emt 0:00:12]} Nbd7 {[%emt 0:00:05]} 6. O-O {[%emt 0:00:36]} O-O {[%emt 0:00:04]} 7. Re1 {[%emt 0:00:03]} Ne4 {[%emt 0:01:14]} 8. Nxe4 {[%emt 0:01:10]} dxe4 {[%emt 0:00:02]} 9. Nd2 {[%emt 0:00:13]} f5 {[%emt 0:00:30]} 10. c3 {[%emt 0:01:11]} Nf6 {[%emt 0:00:53]} 11. Nc4 {[%emt 0:00:51]} Nd5 {[%emt 0:01:27]} 12. Ne5 {[%emt 0:01:19]} Bf6 {[%emt 0:02:15]} 13. Qb3 {[%emt 0:01:56]} c5 {[%emt 0:02:07]} 14. e3 {[%emt 0:01:16]} Qc7 {[%emt 0:02:48]} 15. f4 {[%emt 0:02:22]} Rb8 {[%emt 0:03:18]} 16. a4 {[%emt 0:02:20]} a6 {[%emt 0:00:31]} 17. c4 {[%emt 0:02:00]} Ne7 {[%emt 0:00:50]} 18. Bd2 {[%emt 0:00:11]} cxd4 {[%emt 0:00:26]} 19. exd4 {[%emt 0:00:02]} Nc6 {[%emt 0:00:31]} 20. Bc3 {[%emt 0:00:34]} Nxe5 {[%emt 0:00:26]} 21. dxe5 {[%emt 0:00:32]} Be7 {[%emt 0:00:04]} 22. Rad1 {[%emt 0:00:56]} Bc5+ {[%emt 0:00:07]} 23. Kh1 {[%emt 0:00:02]} Bd7 {[%emt 0:00:07]} 24. Qc2 {[%emt 0:00:37]} b5 {[%emt 0:00:12]} 25. b4 {[%emt 0:00:13]} Be7 {[%emt 0:00:09]} 26. axb5 {[%emt 0:00:16]} axb5 {[%emt 0:00:12]} 27. c5 {[%emt 0:00:01]} Bc6 {[%emt 0:00:09]} 28. Qb3 {[%emt 0:00:14]} Bd5 {[%emt 0:00:03]} 29. Qb2 {[%emt 0:00:11]} Ra8 {[%emt 0:00:06]} 30. Ra1 {[%emt 0:00:04]} Bc4 {[%emt 0:00:25]} 31. Rxa8 {[%emt 0:00:02]} Rxa8 {[%emt 0:00:01]} 32. Ra1 {[%emt 0:00:02]} Rd8 {[%emt 0:00:07]} 33. Bf1 {[%emt 0:00:10]} Bxf1 {[%emt 0:00:19]} 34. Rxf1 {[%emt 0:00:01]} Qc6 {[%emt 0:00:13]} 35. Qe2 {[%emt 0:00:09]} Rd3 {[%emt 0:00:09]} 36. Rc1 {[%emt 0:00:09]} Qd5 {[%emt 0:00:12]} 37. Be1 {[%emt 0:00:32]} Qc6 {[%emt 0:00:10]} 38. Kg1 {[%emt 0:00:11]} h6 {[%emt 0:00:10]} 39. Rc3 {[%emt 0:00:01]} Rd4 {[%emt 0:00:04]} 40. Bf2 {[%emt 0:00:04]} Rxb4 {[%emt 0:00:04]} 41. Be3 {[%emt 0:00:09]} Rb1+ {[%emt 0:00:07]} 42. Kg2 {[%emt 0:00:01]} b4 {[%emt 0:00:12]} 43. Rc2 {[%emt 0:00:15]} b3 {[%emt 0:00:13]} 44. Rb2 {[%emt 0:00:02]} Rxb2 {[%emt 0:00:10]} 45. Qxb2 {[%emt 0:00:01]} Qd5 {[%emt 0:00:11]} 46. Qc3 {[%emt 0:00:15]} Bd8 {[%emt 0:00:17]} 47. c6 {[%emt 0:00:03]} Qd3 {[%emt 0:00:08]} 48. Qc1 {[%emt 0:00:52]} Qe2+ {[%emt 0:00:10]} 49. Kh3 {[%emt 0:00:04]} b2 {[%emt 0:00:09]} 50. Qb1 {[%emt 0:00:24]} Qxe3 {[%emt 0:00:12]} 51. Qxb2 {[%emt 0:00:02]} Qb6 {[%emt 0:00:13]} 52. Qc3 {[%emt 0:00:11]} Bc7 {[%emt 0:00:08]} 53. Kh4 0-1

[Event "Kupreichik Memorial Rapid 2019"]
[Site "Minsk"]
[Date "2019.08.16"]
[Round "4.38"]
[White "Ostrovskiy, Viktor"]
[Black "Yasiukovich, Sergei"]
[Result "0-1"]
[ECO "B13"]
[WhiteElo "1453"]
[BlackElo "1529"]
[Annotator "NA"]
[PlyCount "58"]
[EventDate "2019.08.15"]
[EventType "swiss"]
[EventCountry "BLR"]
[SourceTitle "playchess.com"]
[Source "ChessBase"]
[SourceQuality "1"]
[TimeControl "900+10"]

1. e4 {[%emt 0:00:00]} c6 {[%emt 0:00:00]} 2. d4 {[%emt 0:00:00]} d5 {[%emt 0:00:00]} 3. exd5 {[%emt 0:00:00]} cxd5 {[%emt 0:00:00]} 4. c4 {[%emt 0:00:00]} Nf6 {[%emt 0:00:00]} 5. Nc3 {[%emt 0:00:03]} Nc6 {[%emt 0:00:02]} 6. Nf3 {[%emt 0:00:10]} Bg4 {[%emt 0:00:09]} 7. Be2 {[%emt 0:00:02]} dxc4 {[%emt 0:00:11]} 8. d5 {[%emt 0:00:41]} Na5 {[%emt 0:00:25]} 9. Bxc4 {[%emt 0:05:36]} Nxc4 {[%emt 0:00:10]} 10. Qa4+ {[%emt 0:00:01]} Qd7 {[%emt 0:00:14]} 11. Qxc4 {[%emt 0:00:06]} Bxf3 {[%emt 0:00:13]} 12. gxf3 {[%emt 0:00:04]} Rc8 {[%emt 0:00:36]} 13. Qd4 {[%emt 0:03:23]} g6 {[%emt 0:00:10]} 14. Be3 {[%emt 0:00:07]} Bg7 {[%emt 0:00:10]} 15. Rd1 {[%emt 0:00:27]} b6 {[%emt 0:01:20]} 16. Qa4 {[%emt 0:01:07]} Qxa4 {[%emt 0:00:59]} 17. Nxa4 {[%emt 0:00:02]} O-O {[%emt 0:00:14]} 18. Nc3 {[%emt 0:00:48]} Rfd8 {[%emt 0:00:11]} 19. Ke2 {[%emt 0:00:31]} Nd7 {[%emt 0:00:54]} 20. Bd4 {[%emt 0:00:42]} Rc4 {[%emt 0:01:31]} 21. Bxg7 {[%emt 0:00:17]} Kxg7 {[%emt 0:00:01]} 22. Nb5 {[%emt 0:02:33]} Rc2+ {[%emt 0:00:24]} 23. Rd2 {[%emt 0:00:01]} Rxd2+ {[%emt 0:00:01]} 24. Kxd2 {[%emt 0:00:02]} Ne5 {[%emt 0:00:53]} 25. Nc3 {[%emt 0:00:40]} Nxf3+ {[%emt 0:00:08]} 26. Ke3 {[%emt 0:00:22]} Ne5 {[%emt 0:00:03]} 27. b3 {[%emt 0:01:05]} Ng4+ {[%emt 0:00:11]} 28. Kf4 {[%emt 0:00:23]} Nxf2 {[%emt 0:00:42]} 29. Rf1 {[%emt 0:00:25]} Nd3+ {[%emt 0:00:04]} 0-1

[Event "Kupreichik Memorial Rapid 2019"]
[Site "Minsk"]
[Date "2019.08.16"]
[Round "4.39"]
[White "Drobyshevsky, Vasily"]
[Black "Lashkevich, Andrei"]
[Result "0-1"]
[ECO "A11"]
[WhiteElo "1441"]
[BlackElo "1447"]
[Annotator "NA"]
[PlyCount "122"]
[EventDate "2019.08.15"]
[EventType "swiss"]
[EventCountry "BLR"]
[SourceTitle "playchess.com"]
[Source "ChessBase"]
[SourceQuality "1"]
[TimeControl "900+10"]

1. c4 {[%emt 0:00:00]} c6 {[%emt 0:00:00]} 2. d4 {[%emt 0:00:00]} d6 {[%emt 0:00:00]} 3. e4 {[%emt 0:00:01]} Nd7 {[%emt 0:00:01]} 4. Nc3 {[%emt 0:00:02]} h6 {[%emt 0:00:04]} 5. Nf3 {[%emt 0:00:02]} g5 {[%emt 0:00:04]} 6. h3 {[%emt 0:00:04]} Bg7 {[%emt 0:00:02]} 7. Be2 {[%emt 0:00:06]} Nf8 {[%emt 0:00:05]} 8. Bd2 {[%emt 0:00:26]} Qa5 {[%emt 0:00:05]} 9. Qc2 {[%emt 0:01:59]} Ng6 {[%emt 0:00:05]} 10. Nd5 {[%emt 0:01:01]} Qd8 {[%emt 0:00:02]} 11. Nc3 {[%emt 0:00:31]} a6 {[%emt 0:00:03]} 12. Qc1 {[%emt 0:00:11]} b5 {[%emt 0:00:50]} 13. d5 {[%emt 0:00:50]} b4 {[%emt 0:00:31]} 14. Nd1 {[%emt 0:00:09]} c5 {[%emt 0:00:05]} 15. a3 {[%emt 0:00:38]} bxa3 {[%emt 0:00:17]} 16. Rxa3 {[%emt 0:00:03]} Nf6 {[%emt 0:01:18]} 17. Bd3 {[%emt 0:00:14]} g4 {[%emt 0:00:10]} 18. hxg4 {[%emt 0:00:21]} Nxg4 {[%emt 0:00:08]} 19. Bc2 {[%emt 0:01:03]} N6e5 {[%emt 0:00:26]} 20. Nxe5 {[%emt 0:00:13]} Nxe5 {[%emt 0:00:13]} 21. Ba4+ {[%emt 0:00:36]} Kf8 {[%emt 0:00:15]} 22. Bxh6 {[%emt 0:03:18]} Qa5+ {[%emt 0:00:27]} 23. Kf1 {[%emt 0:00:13]} Kg8 {[%emt 0:00:31]} 24. Qg5 {[%emt 0:00:20]} Ng6 {[%emt 0:00:15]} 25. Bc6 {[%emt 0:01:01]} Qb4 {[%emt 0:00:48]} 26. Bxa8 {[%emt 0:00:43]} Qxc4+ {[%emt 0:00:04]} 27. Kg1 {[%emt 0:00:16]} Qxe4 {[%emt 0:00:18]} 28. Re3 {[%emt 0:00:43]} Qc2 {[%emt 0:00:52]} 29. Re1 {[%emt 0:00:47]} Be5 {[%emt 0:00:50]} 30. g3 {[%emt 0:02:23]} f6 {[%emt 0:00:48]} 31. Qe3 {[%emt 0:00:31]} Bg4 {[%emt 0:00:58]} 32. Nc3 {[%emt 0:00:22]} Bd4 {[%emt 0:00:25]} 33. Rc1 {[%emt 0:00:27]} Qxb2 {[%emt 0:00:34]} 34. Qe1 {[%emt 0:00:02]} Ne5 {[%emt 0:00:20]} 35. Kg2 {[%emt 0:00:20]} Bf3+ {[%emt 0:00:30]} 36. Kg1 {[%emt 0:00:08]} Bxh1 {[%emt 0:00:15]} 37. Kxh1 {[%emt 0:00:04]} Rxh6+ 38. Kg2 Rh7 {[%emt 0:01:26]} 39. Ne2 {[%emt 0:01:05]} Nd3 {[%emt 0:00:36]} 40. Qf1 {[%emt 0:00:10]} Nxc1 {[%emt 0:00:10]} 41. Nxc1 {[%emt 0:00:01]} Qc2 {[%emt 0:00:39]} 42. Nd3 {[%emt 0:00:06]} Qc4 {[%emt 0:00:48]} 43. Qd1 {[%emt 0:00:07]} Rg7 {[%emt 0:00:54]} 44. Nf4 {[%emt 0:00:06]} Qa2 {[%emt 0:00:29]} 45. Qf3 {[%emt 0:00:14]} Qb1 {[%emt 0:01:17]} 46. Ne6 {[%emt 0:00:15]} Rh7 {[%emt 0:00:59]} 47. Qg4+ {[%emt 0:00:11]} Kh8 {[%emt 0:00:01]} 48. Kf3 {[%emt 0:00:25]} Qd1+ {[%emt 0:00:12]} 49. Kf4 {[%emt 0:00:01]} Qxg4+ {[%emt 0:00:08]} 50. Kxg4 {[%emt 0:00:01]} Bxf2 {[%emt 0:00:14]} 51. Kf3 {[%emt 0:00:04]} Be1 {[%emt 0:00:05]} 52. g4 {[%emt 0:00:02]} Rh4 {[%emt 0:00:21]} 53. Kf4 {[%emt 0:00:02]} a5 {[%emt 0:00:07]} 54. Bc6 {[%emt 0:00:02]} c4 {[%emt 0:00:03]} 55. Kf5 {[%emt 0:00:08]} c3 {[%emt 0:00:09]} 56. g5 {[%emt 0:00:00]} fxg5 {[%emt 0:00:08]} 57. Kxg5 {[%emt 0:00:00]} c2 {[%emt 0:00:05]} 58. Kg6 {[%emt 0:00:01]} c1=Q {[%emt 0:00:06]} 59. Kf7 {[%emt 0:00:02]} Rh7+ {[%emt 0:00:18]} 60. Ke8 {[%emt 0:00:02]} Qb1 {[%emt 0:00:14]} 61. Nf8 {[%emt 0:00:16]} Qb8+ {[%emt 0:00:08]} 0-1

[Event "Kupreichik Memorial Rapid 2019"]
[Site "Minsk"]
[Date "2019.08.16"]
[Round "4.40"]
[White "Laptev, Viktor"]
[Black "Kasperovich, Mikhail"]
[Result "0-1"]
[ECO "C01"]
[WhiteElo "1424"]
[BlackElo "1324"]
[Annotator "NA"]
[PlyCount "60"]
[EventDate "2019.08.15"]
[EventType "swiss"]
[EventCountry "BLR"]
[SourceTitle "playchess.com"]
[Source "ChessBase"]
[SourceQuality "1"]
[TimeControl "900+10"]

1. e4 e6 2. d4 d5 3. exd5 exd5 4. Bd3 Nf6 5. h3 h6 6. Nf3 Bd6 7. O-O O-O 8. Be3 Re8 9. c3 {[%emt 0:00:35]} c6 {[%emt 0:00:20]} 10. Nbd2 {[%emt 0:00:21]} Ne4 {[%emt 0:00:21]} 11. Re1 {[%emt 0:00:10]} f5 {[%emt 0:00:11]} 12. Nb3 {[%emt 0:00:41]} Nd7 {[%emt 0:00:33]} 13. c4 {[%emt 0:01:05]} Ndf6 {[%emt 0:00:59]} 14. Rc1 {[%emt 0:00:25]} Be6 {[%emt 0:00:53]} 15. c5 {[%emt 0:00:10]} Bc7 {[%emt 0:00:04]} 16. Ne5 {[%emt 0:00:18]} Bxe5 {[%emt 0:01:04]} 17. dxe5 {[%emt 0:00:02]} Nd7 {[%emt 0:00:28]} 18. f3 {[%emt 0:01:17]} Ng5 {[%emt 0:01:01]} 19. Bf2 {[%emt 0:00:15]} f4 {[%emt 0:03:11]} 20. Bf1 {[%emt 0:04:51]} Qc7 {[%emt 0:01:51]} 21. Qd4 {[%emt 0:01:20]} Rf8 {[%emt 0:00:02]} 22. Bh4 {[%emt 0:01:11]} Rf5 {[%emt 0:01:39]} 23. Bd3 {[%emt 0:00:52]} Rxe5 {[%emt 0:00:19]} 24. Rxe5 {[%emt 0:00:06]} Nxe5 {[%emt 0:00:02]} 25. Bxg5 {[%emt 0:01:05]} hxg5 {[%emt 0:00:01]} 26. Bb1 {[%emt 0:00:53]} Re8 {[%emt 0:02:34]} 27. Re1 {[%emt 0:00:11]} Bxh3 {[%emt 0:00:49]} 28. Rxe5 {[%emt 0:00:18]} Qxe5 {[%emt 0:00:02]} 29. Bg6 {[%emt 0:01:12]} Qe1+ {[%emt 0:00:11]} 30. Kh2 {[%emt 0:00:03]} Qg3+ {[%emt 0:00:01]} 0-1

[Event "Kupreichik Memorial Rapid 2019"]
[Site "Minsk"]
[Date "2019.08.16"]
[Round "5.13"]
[White "Vashchilov, Sergey"]
[Black "Paravyan, David"]
[Result "1/2-1/2"]
[ECO "B54"]
[WhiteElo "2162"]
[BlackElo "2605"]
[Annotator "ChessBase"]
[PlyCount "124"]
[EventDate "2019.08.15"]
[EventType "swiss"]
[EventCountry "BLR"]
[SourceTitle "playchess.com"]
[Source "ChessBase"]
[SourceQuality "1"]
[TimeControl "900+10"]

1. e4 {[%emt 0:00:00]} c5 {[%emt 0:00:00]} 2. Nf3 {[%emt 0:00:00]} d6 {[%emt 0:00:00]} 3. d4 {[%emt 0:00:00]} cxd4 {[%emt 0:00:00]} 4. Nxd4 {[%emt 0:00:00]} Nf6 {[%emt 0:00:00]} 5. f3 {[%emt 0:00:00]} e5 {[%emt 0:00:00]} 6. Nb3 {[%emt 0:00:00]} Be6 {[%emt 0:00:00]} 7. c4 {[%emt 0:00:02]} a5 {[%emt 0:00:00]} 8. Be3 {[%emt 0:01:21]} b5 {[%emt 0:00:00]} 9. cxb5 {[%emt 0:00:21]} a4 {[%emt 0:00:02]} 10. N3d2 {[%emt 0:01:42]} d5 {[%emt 0:00:01]} 11. Bd3 {[%emt 0:00:41]} Nbd7 {[%emt 0:00:25]} 12. O-O {[%emt 0:00:45]} Bc5 {[%emt 0:00:22]} 13. Bxc5 {[%emt 0:00:23]} Nxc5 {[%emt 0:00:01]} 14. Qe2 {[%emt 0:00:28]} O-O {[%emt 0:01:16]} 15. Na3 {[%emt 0:01:48]} Qb6 {[%emt 0:01:00]} 16. Kh1 {[%emt 0:00:12]} Rfd8 {[%emt 0:00:32]} 17. Rfd1 {[%emt 0:01:18]} Nxd3 18. Qxd3 {[%emt 0:00:02]} dxe4 {[%emt 0:00:20]} 19. Qe2 {[%emt 0:00:07]} exf3 {[%emt 0:00:05]} 20. Nxf3 {[%emt 0:00:44]} Ng4 {[%emt 0:00:13]} 21. Rxd8+ {[%emt 0:00:16]} Rxd8 {[%emt 0:00:01]} 22. h3 {[%emt 0:00:01]} Nf2+ {[%emt 0:00:31]} 23. Kh2 {[%emt 0:00:13]} e4 {[%emt 0:00:01]} 24. Ne5 {[%emt 0:01:01]} h5 {[%emt 0:08:43]} 25. Rf1 {[%emt 0:01:28]} e3 {[%emt 0:00:03]} 26. Nec4 {[%emt 0:00:57]} Bxc4 {[%emt 0:01:23]} 27. Nxc4 {[%emt 0:00:06]} Qxb5 {[%emt 0:00:01]} 28. Qxe3 {[%emt 0:03:11]} Qxc4 {[%emt 0:01:02]} 29. Rxf2 {[%emt 0:00:46]} Qxa2 {[%emt 0:00:03]} 30. Qg5 {[%emt 0:00:52]} Qd5 {[%emt 0:00:26]} 31. Qxd5 {[%emt 0:00:26]} Rxd5 {[%emt 0:00:01]} 32. Rf4 {[%emt 0:00:01]} Ra5 {[%emt 0:00:00]} 33. Rb4 {[%emt 0:00:07]} g5 {[%emt 0:00:16]} 34. h4 {[%emt 0:00:28]} g4 {[%emt 0:00:02]} 35. Kg3 {[%emt 0:00:01]} Kg7 {[%emt 0:00:01]} 36. Kf4 {[%emt 0:00:18]} Kg6 {[%emt 0:00:00]} 37. Rb6+ {[%emt 0:00:11]} f6 {[%emt 0:00:01]} 38. Rb4 {[%emt 0:00:01]} Kf7 {[%emt 0:00:19]} 39. Rb7+ {[%emt 0:00:07]} Ke6 {[%emt 0:00:27]} 40. Rb6+ {[%emt 0:00:12]} Kf7 {[%emt 0:01:35]} 41. Rb7+ {[%emt 0:00:02]} Kg6 {[%emt 0:00:00]} 42. Rb4 {[%emt 0:00:08]} Kg7 {[%emt 0:00:13]} 43. Rb7+ {[%emt 0:00:03]} Kf8 {[%emt 0:00:01]} 44. Rb8+ {[%emt 0:00:27]} Ke7 {[%emt 0:00:01]} 45. Rb7+ {[%emt 0:00:01]} Kd6 {[%emt 0:00:11]} 46. Rb6+ {[%emt 0:00:25]} Kc5 {[%emt 0:00:00]} 47. Rxf6 {[%emt 0:00:11]} Kc4 {[%emt 0:00:01]} 48. Rc6+ {[%emt 0:00:42]} Kb3 {[%emt 0:00:11]} 49. Rb6+ {[%emt 0:00:06]} Kc4 {[%emt 0:00:28]} 50. Rc6+ {[%emt 0:00:13]} Kd3 {[%emt 0:00:01]} 51. Rc3+ {[%emt 0:00:11]} Kd4 {[%emt 0:00:50]} 52. Rc8 {[%emt 0:00:17]} Rb5 {[%emt 0:00:31]} 53. Ra8 {[%emt 0:00:03]} Rb4 {[%emt 0:00:00]} 54. Kg5 {[%emt 0:00:03]} Ke3 {[%emt 0:00:01]} 55. Kxh5 {[%emt 0:00:20]} g3 {[%emt 0:01:21]} 56. Rf8 {[%emt 0:00:15]} Rxb2 {[%emt 0:00:55]} 57. Rf3+ {[%emt 0:00:03]} Ke4 {[%emt 0:00:02]} 58. Rxg3 {[%emt 0:00:01]} Rb5+ {[%emt 0:00:17]} 59. Kg6 {[%emt 0:00:21]} Ra5 {[%emt 0:00:04]} 60. Ra3 {[%emt 0:00:07]} Kf4 {[%emt 0:00:07]} 61. g3+ {[%emt 0:00:18]} Kg4 {[%emt 0:00:02]} 62. Kf6 {[%emt 0:00:01]} Ra8 {[%emt 0:00:27]} 1/2-1/2

[Event "Kupreichik Memorial Rapid 2019"]
[Site "Minsk"]
[Date "2019.08.16"]
[Round "5.14"]
[White "Shaban, Alena"]
[Black "Mikhailovsky, Vladimir"]
[Result "0-1"]
[ECO "A05"]
[WhiteElo "2030"]
[BlackElo "2209"]
[Annotator "NA"]
[PlyCount "94"]
[EventDate "2019.08.15"]
[EventType "swiss"]
[EventCountry "BLR"]
[SourceTitle "playchess.com"]
[Source "ChessBase"]
[SourceQuality "1"]
[TimeControl "900+10"]

1. Nf3 {[%emt 0:00:00]} Nf6 {[%emt 0:00:00]} 2. g3 {[%emt 0:00:01]} b5 {[%emt 0:00:01]} 3. Bg2 {[%emt 0:00:03]} Bb7 {[%emt 0:00:03]} 4. O-O {[%emt 0:00:03]} e6 {[%emt 0:00:02]} 5. d3 {[%emt 0:00:01]} d5 {[%emt 0:00:12]} 6. Nbd2 {[%emt 0:00:08]} Be7 {[%emt 0:00:04]} 7. c4 {[%emt 0:02:13]} dxc4 {[%emt 0:01:56]} 8. dxc4 {[%emt 0:00:07]} b4 {[%emt 0:01:28]} 9. a3 {[%emt 0:01:49]} c5 {[%emt 0:01:44]} 10. axb4 {[%emt 0:00:50]} cxb4 {[%emt 0:00:03]} 11. Nb3 {[%emt 0:00:48]} Qc8 {[%emt 0:01:47]} 12. Na5 {[%emt 0:00:25]} Be4 {[%emt 0:00:11]} 13. Ne5 {[%emt 0:01:27]} Bxg2 {[%emt 0:00:41]} 14. Kxg2 {[%emt 0:00:01]} O-O {[%emt 0:00:06]} 15. Be3 {[%emt 0:00:25]} Nfd7 {[%emt 0:04:10]} 16. Nxd7 {[%emt 0:01:43]} Nxd7 {[%emt 0:00:03]} 17. Qc2 {[%emt 0:00:49]} Bc5 {[%emt 0:01:10]} 18. Bxc5 {[%emt 0:01:14]} Nxc5 {[%emt 0:00:04]} 19. Nb3 {[%emt 0:00:22]} Qc6+ {[%emt 0:00:13]} 20. f3 {[%emt 0:00:06]} Rfd8 {[%emt 0:01:04]} 21. Rfd1 {[%emt 0:01:07]} Nxb3 {[%emt 0:00:50]} 22. Qxb3 {[%emt 0:01:23]} Qc5 {[%emt 0:00:26]} 23. Qc2 {[%emt 0:00:51]} h5 {[%emt 0:00:12]} 24. b3 {[%emt 0:00:10]} Qe3 {[%emt 0:00:51]} 25. Ra4 {[%emt 0:00:40]} a5 {[%emt 0:01:27]} 26. Rxa5 h4 {[%emt 0:00:11]} 27. Rxa8 {[%emt 0:00:07]} Rxa8 {[%emt 0:00:01]} 28. Qd3 {[%emt 0:00:05]} Qe5 {[%emt 0:00:16]} 29. Qd2 {[%emt 0:00:12]} g6 {[%emt 0:00:14]} 30. Kf2 {[%emt 0:00:41]} Qf5 {[%emt 0:00:16]} 31. Qxb4 {[%emt 0:00:04]} Qh3 {[%emt 0:00:02]} 32. gxh4 {[%emt 0:00:26]} Qxh2+ {[%emt 0:00:06]} 33. Ke3 {[%emt 0:00:01]} Qe5+ {[%emt 0:00:17]} 34. Kf2 {[%emt 0:00:09]} Ra2 {[%emt 0:00:11]} 35. Rd2 {[%emt 0:00:16]} Qh2+ {[%emt 0:00:03]} 36. Ke3 {[%emt 0:00:01]} Qg1+ {[%emt 0:00:17]} 37. Kd3 {[%emt 0:00:06]} Qb1+ {[%emt 0:00:05]} 38. Ke3 {[%emt 0:00:11]} Qg1+ {[%emt 0:00:02]} 39. Ke4 {[%emt 0:00:08]} Ra8 {[%emt 0:00:20]} 40. c5 {[%emt 0:00:07]} Qg3 {[%emt 0:00:11]} 41. c6 {[%emt 0:00:32]} Rb8 {[%emt 0:00:08]} 42. Qc3 {[%emt 0:00:14]} Qxh4+ {[%emt 0:00:07]} 43. Ke3 {[%emt 0:00:01]} Qg5+ {[%emt 0:00:11]} 44. Kf2 {[%emt 0:00:06]} Qh4+ {[%emt 0:00:16]} 45. Ke3 {[%emt 0:00:02]} Qg5+ {[%emt 0:00:11]} 46. f4 {[%emt 0:00:15]} Qg3+ {[%emt 0:00:05]} 47. Ke4 {[%emt 0:00:12]} Qxc3 {[%emt 0:00:03]} 0-1